[Event "Icelandic Chess-ch 2023"]
[Site "Hafnarfjordur"]
[Date "2023.05.18"]
[Round "4.3"]
[White "Ragnarsson, Dagur"]
[Black "Gretarsson, Hjorvar Steinn"]
[Result "1/2-1/2"]
[ECO "A13"]
[WhiteElo "2346"]
[BlackElo "2539"]
[Annotator "TA"]
[PlyCount "110"]
[EventDate "2023.05.13"]
[EventType "tourn"]
[EventCountry "ISL"]
[SourceTitle "playchess.com"]
[Source "ChessBase"]
[SourceQuality "1"]
[TimeControl "40/5400+30:1800+30"]

{[%evp 9,110,7,22,0,15,11,13,9,11,-8,-2,0,10,0,35,-2,0,0,0,-7,-13,-28,15,18,20,18,16,8,18,0,0,7,34,26,35,30,98,97,84,88,89,92,118,114,106,96,96,93,74,72,102,86,98,92,95,74,77,56,67,59,58,68,61,61,52,54,61,54,79,19,39,27,73,68,90,84,50,57,66,15,14,16,16,16,28,2,2,8,4,6,8,0,0,0,0,0,0,0,0,0,0,0,0]} 1. c4 {[%emt 0:00:18]} e6 {[%emt 0:03:13]} 2. g3 {[%emt 0:01:28]} d5 {[%emt 0:00:18]} 3. Bg2 {[%emt 0:00:08]} Nf6 {[%emt 0:01:43]} 4. Nf3 {[%emt 0:02:10]} dxc4 {[%emt 0:00:18]} 5. Qa4+ {[%emt 0:01:18]} Bd7 {[%emt 0:00:06]} 6. Qxc4 {[%emt 0:00:05] A13: English Opening: 1...e6.} c5 {[%emt 0:00:05]} 7. d4 {[%emt 0:04:25]} b5 {[%emt 0:02:33]} 8. Qc2 {[%emt 0:02:07]} Na6 {[%emt 0:01:45]} 9. dxc5 {[%emt 0:05:33]} Rc8 {[%emt 0:03:11]} ({Don't play} 9... Nxc5 10. O-O $14) (9... Bxc5 {looks sharper.} 10. Ne5 Rc8 11. Qd1 Nb8) 10. O-O {[%emt 0:00:15]} (10. Qd1 {seems wilder.} Bxc5 11. Ne5 Nb8 12. O-O) 10... Bxc5 {[%emt 0:03:00]} 11. Qd1 {[%emt 0:03:06] [#]} b4 $146 {[%emt 0:07:22]} ({Predecessor:} 11... O-O 12. Nbd2 Nb4 13. a3 Nc2 14. Ra2 Bb6 15. b4 Qc7 16. Nb3 Nd5 17. Nc5 Bxc5 18. bxc5 Qxc5 {0-1 Vishnu,P (2505)-Oparin,G (2660) Titled Tuesday intern op 2nd July blitz 2019 (4)}) 12. a4 {[%emt 0:03:07]} (12. Ne5 {with more complications.} Nb8 13. a3 bxa3 14. Nxa3 O-O 15. e3) 12... Bc6 {[%emt 0:11:45]} 13. Qxd8+ {[%emt 0:02:14]} Kxd8 {[%emt 0:00:44]} 14. Nbd2 {[%emt 0:07:02]} Ke7 {[%emt 0:03:16]} 15. Ne5 {[%emt 0:08:19]} Bd5 {[%emt 0:06:29]} 16. Nd3 {[%emt 0:07:02]} Rhd8 {[%emt 0:11:36]} 17. Bxd5 {[%emt 0:01:11]} Nxd5 {[%emt 0:01:57][%cal Bf6d5,Bd5b6,Bb6c4][%mdl 32]} 18. Nb3 {[%emt 0:02:55]} Bd6 {[%emt 0:05:45]} 19. Bd2 {[%emt 0:02:39][%cal Bc1d2,Bd2e1,Be1f2][%mdl 32]} e5 {[%emt 0:02:02]} 20. f3 {[%emt 0:00:32]} Nb6 {[%emt 0:04:16]} (20... Rc2 $5 {[%cal Ra6c5]}) 21. Rfc1 {[%emt 0:07:26] Wards off Nc5} Nc4 {[%emt 0:03:57] Repels Na5} 22. Be1 {[%emt 0:02:17]} f5 {[%emt 0:01:09]} (22... Rc7 $11) 23. g4 $16 {[%emt 0:07:03] [#] Hoping for Bh4+.} Ke6 {[%emt 0:14:03]} 24. gxf5+ {[%emt 0:00:37]} Kxf5 {[%emt 0:00:03]} 25. Bf2 {[%emt 0:05:14]} Rd7 {[%emt 0:01:24]} 26. Nd2 {[%emt 0:03:00]} (26. Na5 {simplifies} Rdc7 27. Nxc4 Rxc4 28. e4+) 26... Rdc7 {[%emt 0:01:29]} 27. Nxc4 {[%emt 0:00:29]} Rxc4 {[%emt 0:00:04]} 28. Rxc4 {[%emt 0:01:24]} Rxc4 {[%emt 0:00:05]} 29. Bxa7 {[%emt 0:00:05]} b3 {[%emt 0:01:15]} 30. Rc1 {[%emt 0:07:37]} Rxa4 {[%emt 0:00:51]} 31. Rc6 {[%emt 0:00:32]} Ke6 {[%emt 0:01:14]} 32. Rb6 {[%emt 0:09:02] White is more active.} Kd7 {[%emt 0:00:14]} 33. Rxb3 {[%emt 0:00:45]} e4 {[%emt 0:00:21]} 34. fxe4 {[%emt 0:00:21]} Rxe4 {[%emt 0:00:04]} 35. Kf1 {[%emt 0:01:15]} Rh4 {[%emt 0:01:43] [#]} 36. h3 $1 {[%emt 0:01:12]} Nc7 {[%emt 0:01:35]} 37. Bf2 {[%emt 0:01:53]} Rh5 {[%emt 0:00:08]} 38. e4 {[%emt 0:01:31]} Ne6 {[%emt 0:01:27][%cal Oe6g5]} 39. Kg2 {[%emt 0:00:54]} (39. Rb7+ $16 Bc7 40. h4) 39... Rg5+ $1 $11 {[%emt 0:00:18]} 40. Kf3 {[%emt 0:00:21]} Ra5 {[%emt 0:00:10]} (40... Rh5 $11) 41. h4 $16 {[%emt 0:31:33]} h5 {[%emt 0:31:08]} 42. Rb7+ {[%emt 0:00:00]} Kc6 {[%emt 0:00:00]} 43. Rb6+ {[%emt 0:00:00]} Kd7 {[%emt 0:00:00]} 44. Bg3 {[%emt 0:00:00]} (44. Ke3 $14) 44... Bxg3 $1 $11 {[%emt 0:00:00]} 45. Kxg3 {[%emt 0:00:00][%mdl 4096] Endgame KRN-KRN} g5 {[%emt 0:00:00] Dodges Nf4} 46. Rb7+ {[%emt 0:00:00]} Kd6 {[%emt 0:00:00]} 47. hxg5 {[%emt 0:00:00]} Rxg5+ {[%emt 0:00:00] The position is equal.} 48. Kf2 {[%emt 0:00:00]} h4 {[%emt 0:00:00]} 49. Rh7 {[%emt 0:00:00]} Rg4 {[%emt 0:00:00]} 50. Rh6 {[%emt 0:00:00]} Rxe4 {[%emt 0:00:00]} 51. Kf3 {[%emt 0:00:00]} Rc4 {[%emt 0:00:00]} 52. Ke3 {[%emt 0:00:00]} Kd5 {[%emt 0:00:00]} 53. Rh5+ {[%emt 0:00:00]} Kd6 {[%emt 0:00:00]} 54. Rh6 {[%emt 0:00:00]} Kd5 {[%emt 0:00:00]} 55. Rh5+ {[%emt 0:00:00]} Kd6 {[%emt 0:00:05] Weighted Error Value: White=0.08 (flawless) /Black=0.08 (flawless)} 1/2-1/2

[Event "Icelandic Chess-ch 2023"]
[Site "Hafnarfjordur"]
[Date "2023.05.18"]
[Round "4.4"]
[White "Danielsen, Henrik"]
[Black "Heimisson, Hilmir Freyr"]
[Result "0-1"]
[ECO "A09"]
[WhiteElo "2501"]
[BlackElo "2353"]
[Annotator "TA"]
[PlyCount "82"]
[EventDate "2023.05.13"]
[EventType "tourn"]
[EventCountry "ISL"]
[SourceTitle "playchess.com"]
[Source "ChessBase"]
[SourceQuality "1"]
[TimeControl "40/5400+30:1800+30"]

{[%evp 11,82,14,22,22,22,22,30,24,21,24,29,0,0,0,0,3,25,19,37,-52,-57,-81,-85,-89,-77,-79,-83,-92,-5,-41,12,0,45,37,37,39,52,52,53,37,77,66,87,0,0,0,0,0,0,0,0,-185,0,-194,-184,-191,-183,-203,-192,-197,-195,-172,-178,-639,-594,-12829,-2160,-1713,-1705,-1689,-1546,-1108,-463]} 1. g3 {[%emt 0:00:19]} d5 {[%emt 0:07:58]} 2. Bg2 {[%emt 0:01:20]} Nf6 {[%emt 0:00:11]} 3. Nf3 {[%emt 0:02:50]} e6 {[%emt 0:00:12]} 4. O-O {[%emt 0:02:44]} c5 {[%emt 0:00:06]} 5. c4 {[%emt 0:01:52]} d4 {[%emt 0:00:05]} 6. d3 {[%emt 0:00:27]} Nc6 {[%emt 0:00:11]} 7. e3 {[%emt 0:00:14] A09: Réti Opening: 1 Nf3 d5 2 c4.} h6 {[%emt 0:00:39]} 8. exd4 {[%emt 0:04:51]} cxd4 {[%emt 0:00:10]} 9. Bf4 {[%emt 0:01:59] White has an edge.} Nd7 {[%emt 0:00:29]} 10. Re1 {[%emt 0:00:39]} Bb4 {[%emt 0:01:51]} 11. Nbd2 {[%emt 0:01:46] Black should prevent a3.} a5 $1 {[%emt 0:02:00][%cal Ba7a5,Ba5a4][%mdl 32]} 12. a3 {[%emt 0:03:45]} Be7 {[%emt 0:00:53] [#]} 13. Nb3 $146 {[%emt 0:04:13]} ({Predecessor:} 13. g4 O-O 14. Rb1 a4 15. h3 Ra5 16. Bg3 Nc5 17. Qe2 Bd6 18. Ne4 Nxe4 19. Qxe4 {½-½ Sjugirov,S (2709)-Iljiushenok,I (2567) RUS-chT Rapid 2022 (3.2)}) 13... g5 {[%emt 0:00:53]} 14. Be5 {[%emt 0:03:20]} Rg8 {[%emt 0:00:07]} 15. g4 {[%emt 0:05:10]} (15. Nbxd4 $2 Ndxe5 16. Nxe5 Nxd4 $19) (15. Bxd4 $14 a4 16. Nbd2) 15... a4 {[%emt 0:17:26]} 16. Nc1 {[%emt 0:04:38] [#]} (16. Nbxd4 $2 Ndxe5 17. Nxc6 Nxc6 $19) 16... h5 $1 {[%emt 0:10:32]} 17. h3 {[%emt 0:00:15]} (17. gxh5 $2 g4 18. Bg3 gxf3 19. Bxf3 Qb6 $19) (17. Bxd4 $2 hxg4 18. Bc3 gxf3 $19) 17... hxg4 {[%emt 0:03:03]} 18. hxg4 {[%emt 0:00:10]} Ncxe5 {[%emt 0:13:32]} 19. Nxe5 {[%emt 0:00:24]} Bd6 {[%emt 0:00:39]} (19... Nxe5 $17 20. Rxe5 Rh8) 20. Nf3 {[%emt 0:02:47]} Qf6 {[%emt 0:04:06]} ({Black should try} 20... Nf6 $15) 21. Ne2 $11 {[%emt 0:01:31]} Ne5 {[%emt 0:04:12]} 22. Nxe5 {[%emt 0:00:47]} Bxe5 {[%emt 0:00:42]} 23. Ng3 {[%emt 0:00:26]} Bxg3 {[%emt 0:07:40]} 24. fxg3 {[%emt 0:00:05]} Rh8 {[%emt 0:00:40]} 25. Rf1 {[%emt 0:01:00]} Qg7 {[%emt 0:02:58]} 26. Qf3 {[%emt 0:10:24]} Ra6 {[%emt 0:00:05]} 27. c5 {[%emt 0:02:32] Prevents Rb6.} (27. Rae1 $16) 27... Rc6 {[%emt 0:02:25]} (27... Qh7 28. Rae1 $16) 28. Rac1 {[%emt 0:00:34]} Bd7 {[%emt 0:00:43]} 29. Rce1 {[%emt 0:22:15]} Rc7 {[%emt 0:00:53] aiming for ...Qh7.} 30. Qd5 {[%emt 0:00:51] And now Qd6 would win.} Qh6 {[%emt 0:07:27] White must now prevent ...Bc6.} 31. Qxd4 $2 {[%emt 0:10:02]} (31. Qe5 $11 {and White stays safe.} Qh2+ 32. Kf2) 31... Qh2+ $19 {[%emt 0:02:15]} ({Inferior is} 31... Bc6 32. Bxc6+ bxc6 33. Re2 $11 (33. Qxa4 $2 Qh2#) (33. Kf2 Rd7 $11)) 32. Kf2 {[%emt 0:00:06] Rh1 is the strong threat.} Bc6 {[%emt 0:00:06]} 33. Rg1 {[%emt 0:01:27]} Rh6 {[%emt 0:03:13] Threatens to win with ...Rd7.} ({Weaker is} 33... Rh3 34. Re3 $11 (34. Qd6 $2 Rd7 $19 {[%mdl 64] Skewer})) 34. Kf1 {[%emt 0:04:33]} Rd7 {[%emt 0:02:46][%mdl 64] [#] Skewer, Deflection} 35. Qf2 {[%emt 0:03:58]} Rxd3 $40 {[%emt 0:01:45][%mdl 128] Black goes for the king.} 36. Bxc6+ {[%emt 0:01:08]} bxc6 {[%emt 0:00:08]} 37. Rg2 {[%emt 0:00:20]} (37. Qxh2 Rxh2 38. Rg2 Rxg2 39. Kxg2) 37... Qh3 {[%emt 0:00:36] Black is clearly winning.} 38. Re3 {[%emt 0:01:12]} Rxe3 {[%emt 0:01:18]} (38... Qh1+ $142 39. Rg1 Qd5 40. Rxd3 Qxd3+ 41. Kg2 Qd5+ 42. Qf3 Rh2+ {[%mdl 64] Skewer, Deflection} 43. Kxh2 Qxf3) 39. Qxe3 {[%emt 0:00:03]} Qxg4 {[%emt 0:00:12]} 40. Qe5 {[%emt 0:01:20]} Qd1+ {[%emt 0:03:19]} 41. Kf2 {[%emt 0:30:08]} Rh1 {[%emt 0:05:31] Weighted Error Value: White=0.54/Black=0.20 (precise)} (41... Qc2+ $142 42. Kg1 Qc1+ 43. Kf2 Rh1 44. Qb8+ Ke7 45. Qd6+ Kf6 46. Qd8+ Kg7 47. Qd4+ Kg6 48. Qe4+ Kh6) 0-1

[Event "Icelandic Chess-ch 2023"]
[Site "Hafnarfjordur"]
[Date "2023.05.18"]
[Round "4.5"]
[White "Domalchuk-Jonasson, Aleksandr"]
[Black "Stefansson, Hannes"]
[Result "0-1"]
[ECO "E39"]
[WhiteElo "2338"]
[BlackElo "2521"]
[Annotator "TA"]
[PlyCount "80"]
[EventDate "2023.05.13"]
[EventType "tourn"]
[EventCountry "ISL"]
[SourceTitle "playchess.com"]
[Source "ChessBase"]
[SourceQuality "1"]
[TimeControl "40/5400+30:1800+30"]

{[%evp 17,80,26,25,22,22,16,24,19,31,24,22,12,9,8,9,20,20,3,0,0,22,-7,0,0,0,0,0,-10,0,0,0,-3,11,0,0,-16,-9,-22,-26,-23,-25,-27,-30,-41,-27,-32,-52,-63,-60,-95,-72,-117,-126,-174,-181,-195,-197,-272,-279,-277,-277,-1170,-1125,-1110,-1093]} 1. d4 {[%emt 0:00:03]} Nf6 {[%emt 0:00:11]} 2. c4 {[%emt 0:00:13]} e6 {[%emt 0:00:14]} 3. Nc3 {[%emt 0:00:14]} Bb4 {[%emt 0:00:16]} 4. Qc2 {[%emt 0:00:12]} c5 {[%emt 0:00:55]} 5. dxc5 {[%emt 0:00:39]} O-O {[%emt 0:00:24]} 6. a3 {[%emt 0:02:49]} Bxc5 {[%emt 0:00:23]} 7. Nf3 {[%emt 0:02:06]} b6 {[%emt 0:01:08]} 8. Bg5 {[%emt 0:04:28]} Bb7 {[%emt 0:00:42]} 9. e3 {[%emt 0:00:42]} h6 {[%emt 0:00:44]} 10. Bh4 {[%emt 0:00:52] E39: Nimzo-Indian: Classical: 4...c5 5 dxc5 0-0.} Be7 {[%emt 0:00:58]} 11. Be2 {[%emt 0:00:54]} d6 {[%emt 0:00:44]} 12. O-O {[%emt 0:01:10] White has an edge.} Nbd7 {[%emt 0:00:47]} 13. Rfd1 {[%emt 0:01:05]} Qc7 {[%emt 0:01:18]} 14. h3 {[%emt 0:20:21]} a6 {[%emt 0:08:24]} 15. Rac1 {[%emt 0:10:59]} Rac8 {[%emt 0:02:14]} 16. Bg3 {[%emt 0:06:10]} Rfd8 {[%emt 0:03:43]} 17. Nd2 {[%emt 0:06:24]} Qb8 {[%emt 0:02:43]} 18. Qb1 {[%emt 0:04:09]} Qa8 {[%emt 0:04:08] [#]} 19. Bf3 $146 {[%emt 0:02:30]} ({Predecessor:} 19. Bf1 d5 20. b4 dxc4 21. Nxc4 Nd5 22. Ne2 N5f6 23. Bd6 Bxd6 24. Nxd6 Rxc1 25. Rxc1 {1-0 Maiorov,N (2554)-Stella,A (2456) Livigno op-A 3rd 2012 (5)}) 19... Bxf3 {[%emt 0:02:38]} 20. Nxf3 {[%emt 0:00:08]} Nf8 {[%emt 0:05:27]} 21. Nd2 {[%emt 0:03:57]} Qb7 {[%emt 0:01:24]} 22. Qd3 {[%emt 0:05:14]} Ng6 {[%emt 0:03:59]} 23. Qe2 {[%emt 0:03:04]} h5 {[%emt 0:03:39]} 24. Bh2 {[%emt 0:11:38]} h4 {[%emt 0:01:11]} 25. Nf3 {[%emt 0:00:48]} Qc6 {[%emt 0:05:18]} 26. Na2 {[%emt 0:01:55]} Ne4 {[%emt 0:01:58]} 27. Nd4 {[%emt 0:02:46]} Qb7 {[%emt 0:01:26]} 28. Nc3 {[%emt 0:00:36]} Nxc3 {[%emt 0:01:28]} 29. Rxc3 {[%emt 0:00:06]} d5 {[%emt 0:03:14]} 30. Rdc1 {[%emt 0:04:33]} e5 {[%emt 0:01:56]} 31. Nf5 {[%emt 0:00:32]} Bf6 {[%emt 0:00:44]} 32. cxd5 {[%emt 0:00:41] [#] Strongly threatening Rc6.} Rxc3 {[%emt 0:00:29]} 33. bxc3 {[%emt 0:00:46] Hoping for e4.} Qxd5 {[%emt 0:03:05]} 34. e4 {[%emt 0:00:06]} Qa5 {[%emt 0:02:08]} 35. Qb2 {[%emt 0:01:15]} (35. Rb1 $17) 35... Bg5 $19 {[%emt 0:01:00]} 36. Rb1 {[%emt 0:02:18]} Qa4 $40 {[%emt 0:01:29][%mdl 128] Prevents c4. ( -> ...Rd1+). Black attacks with force.} 37. Ne3 {[%emt 0:01:34] Repels Rd1+. White is weak on the dark squares} (37. Qe2 {is a better defense.}) 37... Bxe3 {[%emt 0:01:05]} ({Stronger than} 37... Qxe4 38. Qxb6 Rd3 39. Ng4 $17) 38. fxe3 {[%emt 0:00:04]} Qxe4 {[%emt 0:00:49]} 39. Qxb6 $2 {[%emt 0:01:26]} (39. Kh1) 39... Rd2 {[%emt 0:00:48][%csl Gd2][%cal Re4g2]} 40. Qb7 {[%emt 0:00:03] [#]} Rd1+ $3 {[%emt 0:00:18][%mdl 576] Deflection.   Weighted Error Value: White=0.33/Black=0.03 (flawless)} 0-1

[Event "Icelandic Chess-ch 2023"]
[Site "Hafnarfjordur"]
[Date "2023.05.18"]
[Round "4.6"]
[White "Ingvason, Johann"]
[Black "Thorfinnsson, Bragi"]
[Result "0-1"]
[ECO "A62"]
[WhiteElo "2076"]
[BlackElo "2431"]
[Annotator "TA"]
[PlyCount "84"]
[EventDate "2023.05.13"]
[EventType "tourn"]
[EventCountry "ISL"]
[SourceTitle "playchess.com"]
[Source "ChessBase"]
[SourceQuality "1"]
[TimeControl "40/5400+30:1800+30"]

{[%evp 21,84,29,17,25,45,46,44,39,52,30,36,12,8,9,27,8,29,-10,-7,-101,-101,-103,-91,-129,-125,-131,-122,-133,-137,-155,-127,-182,-174,-203,-190,-242,-227,-397,-412,-651,-637,-721,-754,-769,-786,-764,-773,-1472,-1411,-2316,-2454,-2452,-2100,-29940,-9843,-6095,-5505,-29981,-29980,-29988,-29989,-29989,-29990,-29990,-29991]} 1. d4 {[%emt 0:00:02]} Nf6 {[%emt 0:00:25]} 2. c4 {[%emt 0:00:06]} c5 {[%emt 0:03:57]} 3. d5 {[%emt 0:00:25]} g6 {[%emt 0:00:10]} 4. g3 {[%emt 0:00:17]} Bg7 {[%emt 0:00:19]} 5. Bg2 {[%emt 0:00:06]} O-O {[%emt 0:00:49]} 6. Nf3 {[%emt 0:00:12]} d6 {[%emt 0:03:07]} 7. Nc3 {[%emt 0:00:58]} e6 {[%emt 0:00:20]} 8. O-O {[%emt 0:00:13]} exd5 {[%emt 0:02:05]} 9. cxd5 {[%emt 0:01:05]} Re8 {[%emt 0:01:55]} 10. Bf4 {[%emt 0:00:15]} a6 {[%emt 0:00:55] 10...h6 might become the main line.} 11. a4 {[%emt 0:00:07][%cal Ba2a4,Ba4a5][%mdl 32]} Nh5 {[%emt 0:00:39]} 12. Bg5 {[%emt 0:01:35] A62: Modern Benoni: Fianchetto Variation without early ...Nbd7.} Qb6 {[%emt 0:04:14]} 13. Qc1 {[%emt 0:00:27]} Nd7 {[%emt 0:01:52]} 14. a5 {[%emt 0:04:15] White is slightly better.} Qc7 {[%emt 0:00:39] [#]} 15. e4 $146 {[%emt 0:02:52]} ({Predecessor:} 15. Bh6 b5 16. axb6 Nxb6 17. Bxg7 Kxg7 18. e4 Nf6 19. Re1 Rb8 20. Bf1 Nbd7 21. Bxa6 Bxa6 22. Rxa6 {1-0 Atalik,S (2584)-Ljubicic,F (2396) Sarajevo Bosnia-B 37th 2007 (5)}) 15... Rb8 {[%emt 0:06:17]} 16. h3 {[%emt 0:14:15]} b5 {[%emt 0:01:36]} 17. axb6 $1 {[%emt 0:00:53]} Rxb6 {[%emt 0:01:37]} 18. Re1 {[%emt 0:26:24]} Rb4 {[%emt 0:04:14]} 19. g4 {[%emt 0:04:06]} Nhf6 {[%emt 0:00:30]} 20. Qc2 {[%emt 0:00:13] [#]} (20. Bh6 $11 {keeps the balance.}) 20... h5 $1 $17 {[%emt 0:03:07] Black keeps a firm grip on the game.} 21. gxh5 {[%emt 0:09:45]} Nxh5 {[%emt 0:00:32]} 22. Be3 {[%emt 0:02:04]} Ne5 {[%emt 0:04:26]} 23. Nxe5 {[%emt 0:00:14]} Bxe5 {[%emt 0:00:48]} 24. Qd2 {[%emt 0:00:28]} Qb7 {[%emt 0:06:29]} 25. Re2 {[%emt 0:03:41]} Bd7 {[%emt 0:04:07] Black has more active pieces.} 26. Rae1 {[%emt 0:03:51]} (26. f4 $17 {was called for.} Bg7 27. Kh2) 26... Bb5 {[%emt 0:07:52]} 27. Nxb5 {[%emt 0:00:11]} Qxb5 {[%emt 0:00:21]} ({Worse is} 27... axb5 28. Qc1 $17) 28. Qc1 {[%emt 0:01:46]} (28. Qd1 {was necessary.}) 28... a5 {[%emt 0:03:42][%cal Re5b2]} (28... Rxb2 29. Rxb2 Qxb2 30. Qxb2 Bxb2 31. Rb1 $17) 29. f4 $2 {[%emt 0:05:38]} (29. Bf3 Nf6 30. Bg5) 29... Bxb2 $19 {[%emt 0:01:46]} ({Stronger than} 29... Rxb2 30. Bf1 Bg7 31. e5 $17) 30. Rxb2 {[%emt 0:01:31]} (30. Qd1 $142 Bc3 31. Bd2 Bd4+ 32. Kh2) 30... Rxb2 {[%emt 0:00:12]} 31. f5 {[%emt 0:05:55]} Ng3 {[%emt 0:05:11][%csl LRe4,LRf5][%cal Bh5g3,Bg3e2,Be2f4][%mdl 32] [#] aiming for ...Ne2+.} 32. Qd1 {[%emt 0:00:11]} Re2 {[%emt 0:05:24]} 33. fxg6 {[%emt 0:01:38]} fxg6 {[%emt 0:00:27]} 34. Bf2 {[%emt 0:02:00]} Qb2 {[%emt 0:03:05]} (34... Nxe4 $2 35. Qxe2 Qxe2 36. Rxe2 $18) 35. Rxe2 {[%emt 0:06:05]} Nxe2+ {[%emt 0:00:26]} 36. Kf1 {[%emt 0:01:20]} Nf4 {[%emt 0:01:44]} 37. Qg4 {[%emt 0:02:02]} Qa1+ {[%emt 0:08:46]} 38. Be1 {[%emt 0:00:05]} Rf8 {[%emt 0:00:47] ( -> ...Nd3+)} 39. Bf3 {[%emt 0:00:11]} a4 {[%emt 0:00:20][%cal Ba5a4,Ba4a3,Ba3a2][%mdl 32] Black mates.} 40. h4 {[%emt 0:02:22]} a3 {[%emt 0:02:51]} 41. h5 {[%emt 0:30:16]} a2 {[%emt 0:30:29]} 42. hxg6 {[%emt 0:00:06]} Qg7 {[%emt 0:01:20] Weighted Error Value: White=1.00/Black=0.04 (flawless)} 0-1

[Event "Icelandic Chess-ch 2023"]
[Site "Hafnarfjordur"]
[Date "2023.05.19"]
[Round "5.1"]
[White "Thorfinnsson, Bragi"]
[Black "Ptacnikova, Lenka"]
[Result "1-0"]
[ECO "C41"]
[WhiteElo "2431"]
[BlackElo "2099"]
[Annotator "TA"]
[PlyCount "63"]
[EventDate "2023.05.13"]
[EventType "tourn"]
[EventCountry "ISL"]
[SourceTitle "playchess.com"]
[Source "ChessBase"]
[SourceQuality "1"]
[TimeControl "40/5400+30:1800+30"]

{[%evp 21,63,20,48,22,25,19,61,18,23,34,63,45,47,63,245,225,222,236,395,376,369,358,538,556,527,510,905,772,1227,1187,2351,2343,2054,1763,29989,29990,29991,29992,29992,29993,29993,29994,29996,29996]} 1. e4 {[%emt 0:00:43]} d6 {[%emt 0:00:20]} 2. d4 {[%emt 0:00:47]} Nf6 {[%emt 0:00:15]} 3. Nc3 {[%emt 0:00:47]} e5 {[%emt 0:00:22]} 4. Nf3 {[%emt 0:02:02]} Nbd7 {[%emt 0:00:10]} 5. Bc4 {[%emt 0:04:12]} Be7 {[%emt 0:01:13]} 6. O-O {[%emt 0:07:37]} O-O {[%emt 0:00:30]} 7. a4 {[%emt 0:00:22]} a5 {[%emt 0:00:23]} 8. Re1 {[%emt 0:00:48]} h6 {[%emt 0:00:29]} 9. h3 {[%emt 0:05:02]} c6 {[%emt 0:02:49]} 10. Ba2 {[%emt 0:02:56]} Re8 {[%emt 0:06:26]} 11. Be3 {[%emt 0:02:44]} Bf8 {[%emt 0:00:43]} 12. Nd2 {[%emt 0:06:50] C41: Philidor Defence.} exd4 {[%emt 0:10:31]} 13. Bxd4 {[%emt 0:00:19] [#]} b6 $146 {[%emt 0:08:40]} ({Predecessor:} 13... Ne5 14. f4 Ng6 15. Qf3 Be6 16. Rad1 Bxa2 17. Nxa2 d5 18. Bf2 Qc7 19. e5 Nd7 {½-½ Nijboer,F (2558)-Bosboom,M (2471) NED-ch63 Hilversum 2008 (9)}) 14. f4 {[%emt 0:05:55][%cal Bf2f4,Bf4e5][%mdl 32] White is much more active. White is slightly better.} Nc5 {[%emt 0:01:08]} 15. Qf3 {[%emt 0:05:08]} Ne6 {[%emt 0:09:11]} 16. Bf2 {[%emt 0:00:37]} Bb7 {[%emt 0:00:36]} 17. Nc4 {[%emt 0:03:01]} Ra6 $2 {[%emt 0:10:15] Loses the game.} ({Black should play} 17... b5 $14 18. axb5 cxb5) 18. e5 $18 {[%emt 0:10:05]} dxe5 {[%emt 0:05:35]} 19. fxe5 {[%emt 0:03:47]} ({Don't play} 19. Rxe5 $6 Qc7 $16) (19. Nxe5 Nd5 20. Bc4 Ra8) 19... Nd7 {[%emt 0:08:06]} (19... Ng5 {might work better.} 20. Qg3 Nd5) 20. Rad1 {[%emt 0:01:36]} Qc7 {[%emt 0:02:12][%cal Ob6b5]} 21. Qg3 {[%emt 0:04:16]} Bc5 {[%emt 0:08:24]} (21... Raa8 $142 22. Ne4 Kh8) 22. Ne4 {[%emt 0:05:02][%cal Od1d7,Bc3e4,Be4f2,Bf2g4][%mdl 32] [#] And now Rxd7! would win.} Bxf2+ {[%emt 0:00:20]} 23. Nxf2 {[%emt 0:03:56]} Ndc5 {[%emt 0:01:08]} (23... Ndf8 $142 24. Nd6 Re7) 24. Ng4 {[%emt 0:02:03]} Kh8 {[%emt 0:00:14]} 25. Nd6 {[%emt 0:01:15] Threatens to win with Nxh6.} Rf8 {[%emt 0:02:44]} 26. Qh4 {[%emt 0:00:42][%cal Og4h6] White threatens Nxh6! and mate.} Kh7 {[%emt 0:01:53]} 27. c3 {[%emt 0:01:26] Threatening mate with Bb1+.} Rh8 {[%emt 0:06:00]} 28. Rf1 {[%emt 0:02:02] White mates.} Qd8 {[%emt 0:01:22] [#]} 29. Nf6+ $1 {[%emt 0:03:06][%mdl 512]} gxf6 {[%emt 0:00:18]} 30. Nxf7 {[%emt 0:00:37][%mdl 64] Discovered Attack} Qf8 {[%emt 0:00:55]} 31. Rxf6 {[%emt 0:01:44]} Kg7 {[%emt 0:00:04]} 32. Qh5 {[%emt 0:02:27] Weighted Error Value: White=0.08 (flawless) /Black=0.75} 1-0